[Event "SVK Amateur-ch 2020"]
[Site "Topolcany"]
[Date "2020.07.11"]
[Round "3.15"]
[White "Rabovszky Gyorgy"]
[Black "Chlpek, Daniel"]
[Result "1-0"]
[ECO "B15"]
[WhiteElo "1716"]
[BlackElo "1969"]
[Annotator "ChessBase"]
[PlyCount "59"]
[EventDate "2020.07.10"]
[EventType "swiss"]
[EventCountry "SVK"]
[SourceTitle "playchess.com"]
[Source "ChessBase"]
[SourceQuality "1"]
[TimeControl "3600+30"]

1. e4 {[%emt 0:00:00]} c6 {[%emt 0:00:00]} 2. d4 {[%emt 0:00:00]} d5 {[%emt 0:00:00]} 3. f3 {[%emt 0:00:16]} g6 {[%emt 0:01:41]} 4. Nc3 {[%emt 0:01:52]} Bg7 {[%emt 0:00:12]} 5. Be3 {[%emt 0:01:59]} dxe4 {[%emt 0:04:19]} 6. fxe4 {[%emt 0:00:54]} Nf6 {[%emt 0:00:19]} 7. Be2 {[%emt 0:02:08]} Qa5 {[%emt 0:05:06]} 8. Qd2 {[%emt 0:01:21]} Bg4 {[%emt 0:02:29]} 9. e5 {[%emt 0:02:52]} Bxe2 {[%emt 0:05:33]} 10. exf6 {[%emt 0:00:10]} Bxf6 {[%emt 0:00:04]} 11. Ngxe2 {[%emt 0:00:13]} Nd7 {[%emt 0:00:12]} 12. O-O {[%emt 0:11:56]} O-O {[%emt 0:01:52]} 13. Ne4 {[%emt 0:03:22]} Qxd2 {[%emt 0:00:35]} 14. Nxf6+ {[%emt 0:00:28]} Nxf6 {[%emt 0:00:27]} 15. Bxd2 {[%emt 0:00:09]} Rad8 {[%emt 0:01:21]} 16. Bg5 {[%emt 0:03:08]} Kg7 {[%emt 0:00:13]} 17. Bxf6+ {[%emt 0:00:47]} exf6 {[%emt 0:00:01]} 18. c3 {[%emt 0:00:45]} Rfe8 {[%emt 0:00:06]} 19. Rae1 {[%emt 0:01:36]} Rd5 {[%emt 0:01:27]} 20. Nf4 {[%emt 0:00:55]} Rxe1 {[%emt 0:00:08]} 21. Rxe1 {[%emt 0:00:10]} Rf5 {[%emt 0:00:23]} 22. g3 {[%emt 0:00:31]} Rb5 {[%emt 0:00:06]} 23. Nd3 {[%emt 0:00:56]} Kf8 {[%emt 0:00:45]} 24. Re2 {[%emt 0:01:12]} b6 {[%emt 0:00:18]} 25. c4 {[%emt 0:02:50]} Ra5 {[%emt 0:00:16]} 26. b3 {[%emt 0:00:45]} h5 {[%emt 0:00:07]} 27. Nb4 {[%emt 0:03:22]} c5 {[%emt 0:00:08]} 28. Nc6 {[%emt 0:00:17]} Ra3 {[%emt 0:00:08]} 29. d5 {[%emt 0:00:22]} a5 {[%emt 0:00:05]} 30. d6 {[%emt 0:00:36]} 1-0

[Event "SVK Amateur-ch 2020"]
[Site "Topolcany"]
[Date "2020.07.11"]
[Round "3.16"]
[White "Malinovsky Jozef"]
[Black "Meszarosova, Eva"]
[Result "0-1"]
[ECO "A16"]
[WhiteElo "1698"]
[BlackElo "1976"]
[Annotator "ChessBase"]
[PlyCount "48"]
[EventDate "2020.07.10"]
[EventType "swiss"]
[EventCountry "SVK"]
[SourceTitle "playchess.com"]
[Source "ChessBase"]
[SourceQuality "1"]
[TimeControl "3600+30"]

1. c4 {[%emt 0:00:00]} Nf6 {[%emt 0:00:00]} 2. Nf3 {[%emt 0:00:00]} g6 {[%emt 0:00:14]} 3. Nc3 {[%emt 0:00:08]} Bg7 {[%emt 0:00:11]} 4. e4 {[%emt 0:00:22]} d6 {[%emt 0:00:23]} 5. Be2 {[%emt 0:01:01]} O-O {[%emt 0:00:17]} 6. O-O {[%emt 0:00:06]} e5 {[%emt 0:00:32]} 7. d3 {[%emt 0:02:40]} c6 {[%emt 0:01:50]} 8. Be3 {[%emt 0:01:33]} Re8 {[%emt 0:03:07]} 9. Qb3 {[%emt 0:06:05]} Nbd7 {[%emt 0:01:51]} 10. Qa3 {[%emt 0:01:23]} Nf8 {[%emt 0:01:55]} 11. Rfe1 {[%emt 0:01:02]} d5 {[%emt 0:03:49]} 12. cxd5 {[%emt 0:01:31]} cxd5 {[%emt 0:00:18]} 13. Bg5 {[%emt 0:01:55]} dxe4 {[%emt 0:04:16]} 14. dxe4 {[%emt 0:00:50]} Ne6 {[%emt 0:08:11]} 15. Bxf6 {[%emt 0:07:33]} Bxf6 {[%emt 0:00:57]} 16. Red1 {[%emt 0:01:58]} Nd4 {[%emt 0:01:44]} 17. Kf1 {[%emt 0:00:56]} Be7 {[%emt 0:01:31]} 18. Qa4 {[%emt 0:01:08]} Bd7 {[%emt 0:02:05]} 19. Bb5 {[%emt 0:03:08]} Nxb5 {[%emt 0:01:53]} 20. Nxb5 {[%emt 0:02:46]} a6 {[%emt 0:00:18]} 21. Nc7 {[%emt 0:03:01]} Bxa4 {[%emt 0:01:41]} 22. Rxd8 {[%emt 0:00:02]} Raxd8 {[%emt 0:00:14]} 23. Nxe8 {[%emt 0:00:06]} Bb5+ {[%emt 0:00:47]} 24. Kg1 {[%emt 0:00:24]} Bxe8 {[%emt 0:01:04]} 0-1

[Event "SVK Amateur-ch 2020"]
[Site "Topolcany"]
[Date "2020.07.11"]
[Round "3.17"]
[White "Trangos, Miroslav"]
[Black "Mikula, Martin"]
[Result "1-0"]
[ECO "E32"]
[WhiteElo "1971"]
[BlackElo "1641"]
[Annotator "ChessBase"]
[PlyCount "74"]
[EventDate "2020.07.10"]
[EventType "swiss"]
[EventCountry "SVK"]
[SourceTitle "playchess.com"]
[Source "ChessBase"]
[SourceQuality "1"]
[TimeControl "3600+30"]

1. d4 {[%emt 0:00:00]} Nf6 {[%emt 0:00:00]} 2. c4 {[%emt 0:00:00]} e6 {[%emt 0:00:08]} 3. Nc3 {[%emt 0:00:03]} Bb4 {[%emt 0:00:16]} 4. Qc2 {[%emt 0:00:31]} O-O {[%emt 0:00:25]} 5. e4 {[%emt 0:00:58]} d5 {[%emt 0:02:09]} 6. e5 {[%emt 0:00:29]} Ne4 {[%emt 0:00:12]} 7. Bd3 {[%emt 0:01:15]} c5 {[%emt 0:02:09]} 8. a3 {[%emt 0:08:57]} Qa5 {[%emt 0:03:01]} 9. axb4 {[%emt 0:01:37]} Qxa1 {[%emt 0:00:10]} 10. bxc5 {[%emt 0:04:41]} Nc6 {[%emt 0:01:24]} 11. Nge2 {[%emt 0:01:42]} Nb4 {[%emt 0:01:39]} 12. Qb1 {[%emt 0:00:55]} Qxb1 {[%emt 0:01:45]} 13. Bxb1 {[%emt 0:00:10]} Nxc3 {[%emt 0:04:03]} 14. bxc3 {[%emt 0:00:20]} Nc6 {[%emt 0:00:13]} 15. Ba2 {[%emt 0:04:32]} dxc4 {[%emt 0:00:46]} 16. Bxc4 {[%emt 0:00:35]} Bd7 {[%emt 0:00:23]} 17. f3 {[%emt 0:03:51]} Rfc8 {[%emt 0:01:49]} 18. O-O {[%emt 0:04:47]} b6 {[%emt 0:00:42]} 19. Ba6 {[%emt 0:01:22]} Rc7 {[%emt 0:00:09]} 20. Ba3 {[%emt 0:00:22]} bxc5 {[%emt 0:00:10]} 21. Bxc5 {[%emt 0:00:11]} Bc8 {[%emt 0:01:51]} 22. Bd3 {[%emt 0:04:05]} Nxe5 {[%emt 0:06:05]} 23. Be4 {[%emt 0:00:16]} Nc6 {[%emt 0:00:48]} 24. Bd6 {[%emt 0:00:24]} f5 {[%emt 0:00:17]} 25. Bxc7 {[%emt 0:01:26]} fxe4 {[%emt 0:00:08]} 26. fxe4 {[%emt 0:00:39]} Ba6 {[%emt 0:00:27]} 27. Kf2 {[%emt 0:03:14]} Bc4 {[%emt 0:05:00]} 28. Ra1 {[%emt 0:01:05]} a5 {[%emt 0:00:38]} 29. Ke3 {[%emt 0:00:37]} a4 {[%emt 0:00:30]} 30. Ra3 {[%emt 0:03:32]} Kf7 {[%emt 0:04:54]} 31. Nf4 {[%emt 0:02:20]} Ke7 {[%emt 0:04:15]} 32. d5 {[%emt 0:01:46]} exd5 {[%emt 0:02:07]} 33. exd5 {[%emt 0:01:07]} Kd7 {[%emt 0:00:48]} 34. Bb6 {[%emt 0:01:38]} Ne5 {[%emt 0:04:16]} 35. Kd4 {[%emt 0:00:27]} Ra6 {[%emt 0:23:10]} 36. Bc5 {[%emt 0:01:01]} Ra5 {[%emt 0:00:29]} 37. Bb4 {[%emt 0:02:00]} Ra8 {[%emt 0:01:14]} 1-0

[Event "SVK Amateur-ch 2020"]
[Site "Topolcany"]
[Date "2020.07.11"]
[Round "3.18"]
[White "Kolesar, Peter"]
[Black "Macko, Michal"]
[Result "1/2-1/2"]
[ECO "B44"]
[WhiteElo "2002"]
[BlackElo "2145"]
[Annotator "ChessBase"]
[PlyCount "43"]
[EventDate "2020.07.10"]
[EventType "swiss"]
[EventCountry "SVK"]
[SourceTitle "playchess.com"]
[Source "ChessBase"]
[SourceQuality "1"]
[TimeControl "3600+30"]

1. e4 {[%emt 0:02:50]} c5 {[%emt 0:00:00]} 2. Nf3 {[%emt 0:00:11]} e6 {[%emt 0:00:00]} 3. d4 {[%emt 0:00:36]} cxd4 {[%emt 0:00:00]} 4. Nxd4 {[%emt 0:00:04]} Nc6 {[%emt 0:00:00]} 5. c3 {[%emt 0:04:21]} Qc7 {[%emt 0:02:33]} 6. g3 {[%emt 0:03:37]} d6 {[%emt 0:01:20]} 7. Bg2 {[%emt 0:00:18]} Bd7 {[%emt 0:00:04]} 8. Nb5 {[%emt 0:03:08]} Qb8 {[%emt 0:00:05]} 9. a4 {[%emt 0:00:51]} a6 {[%emt 0:04:38]} 10. Nd4 {[%emt 0:02:50]} Nf6 {[%emt 0:00:44]} 11. O-O {[%emt 0:00:13]} Be7 {[%emt 0:01:01]} 12. Be3 {[%emt 0:00:37]} Qc7 {[%emt 0:00:40]} 13. Na3 {[%emt 0:02:45]} Rc8 {[%emt 0:01:20]} 14. Nac2 {[%emt 0:00:22]} Ne5 {[%emt 0:00:34]} 15. Bc1 {[%emt 0:07:02]} O-O {[%emt 0:07:30]} 16. Ne3 {[%emt 0:00:56]} b5 {[%emt 0:01:42]} 17. axb5 {[%emt 0:00:23]} axb5 {[%emt 0:00:04]} 18. h3 {[%emt 0:05:10]} Qb6 {[%emt 0:01:49]} 19. Qe2 {[%emt 0:00:54]} Rb8 {[%emt 0:06:26]} 20. f4 {[%emt 0:05:38]} Nc6 {[%emt 0:01:12]} 21. Rd1 {[%emt 0:01:41]} Nxd4 {[%emt 0:03:43]} 22. cxd4 {[%emt 0:02:43]} 1/2-1/2

[Event "SVK Amateur-ch 2020"]
[Site "Topolcany"]
[Date "2020.07.11"]
[Round "3.20"]
[White "Skreno, Vladimir"]
[Black "Holly, Andrej"]
[Result "0-1"]
[ECO "A83"]
[WhiteElo "2119"]
[BlackElo "2011"]
[Annotator "ChessBase"]
[PlyCount "87"]
[EventDate "2020.07.10"]
[EventType "swiss"]
[EventCountry "SVK"]
[SourceTitle "playchess.com"]
[Source "ChessBase"]
[SourceQuality "1"]
[TimeControl "3600+30"]

1. d4 {[%emt 0:00:00]} f5 {[%emt 0:00:00]} 2. e4 {[%emt 0:00:27]} fxe4 {[%emt 0:00:00]} 3. Nc3 {[%emt 0:00:03]} Nf6 {[%emt 0:00:00]} 4. Bg5 {[%emt 0:00:11]} c6 {[%emt 0:01:05]} 5. Bxf6 {[%emt 0:02:28]} exf6 {[%emt 0:00:05]} 6. Nxe4 {[%emt 0:00:55]} d5 {[%emt 0:00:37]} 7. Ng3 {[%emt 0:00:59]} Bd6 {[%emt 0:03:42]} 8. Bd3 {[%emt 0:04:13]} O-O {[%emt 0:01:05]} 9. Qd2 {[%emt 0:07:49]} f5 {[%emt 0:05:24]} 10. f4 {[%emt 0:02:29]} Qh4 {[%emt 0:05:56]} 11. N1e2 {[%emt 0:00:41]} Nd7 {[%emt 0:00:19]} 12. O-O-O {[%emt 0:00:55]} g6 {[%emt 0:01:02]} 13. Kb1 {[%emt 0:10:41]} Nf6 {[%emt 0:00:44]} 14. Rdf1 {[%emt 0:07:03]} Bd7 {[%emt 0:03:50]} 15. Ng1 {[%emt 0:03:49]} Ne4 {[%emt 0:01:34]} 16. Nxe4 {[%emt 0:03:15]} fxe4 {[%emt 0:06:14]} 17. g3 {[%emt 0:00:09]} Qe7 {[%emt 0:00:11]} 18. Re1 {[%emt 0:01:43]} Qg7 {[%emt 0:01:54]} 19. Bf1 {[%emt 0:02:59]} a5 {[%emt 0:00:42]} 20. h4 {[%emt 0:00:48]} a4 {[%emt 0:03:13]} 21. h5 {[%emt 0:05:38]} a3 {[%emt 0:02:33]} 22. b3 {[%emt 0:02:28]} c5 {[%emt 0:02:05]} 23. Ne2 {[%emt 0:01:19]} Rfe8 {[%emt 0:06:52]} 24. Qe3 {[%emt 0:01:30]} Bg4 {[%emt 0:01:08]} 25. hxg6 {[%emt 0:00:45]} hxg6 {[%emt 0:01:02]} 26. c3 {[%emt 0:01:08]} Bf3 {[%emt 0:05:17]} 27. Rh2 {[%emt 0:00:33]} Rac8 {[%emt 0:02:40]} 28. Bh3 {[%emt 0:00:53]} Bxe2 {[%emt 0:03:11]} 29. Rhxe2 {[%emt 0:02:14]} cxd4 {[%emt 0:01:14]} 30. cxd4 {[%emt 0:00:59]} Rc7 {[%emt 0:02:04]} 31. Rc1 {[%emt 0:01:36]} Rxc1+ {[%emt 0:04:51]} 32. Kxc1 {[%emt 0:00:01]} Bb4 {[%emt 0:03:15]} 33. Rc2 {[%emt 0:02:21]} Qh7 {[%emt 0:00:05]} 34. g4 {[%emt 0:00:51]} Bd6 {[%emt 0:00:56]} 35. f5 {[%emt 0:01:01]} Qh4 {[%emt 0:01:45]} 36. Rf2 {[%emt 0:01:38]} Bg3 {[%emt 0:00:42]} 37. Rg2 {[%emt 0:00:26]} Qxh3 {[%emt 0:00:26]} 38. Qxg3 {[%emt 0:00:56]} Qxg3 {[%emt 0:00:37]} 39. Rxg3 {[%emt 0:00:01]} gxf5 {[%emt 0:00:26]} 40. gxf5+ {[%emt 0:00:17]} Kf7 {[%emt 0:00:02]} 41. Kd2 {[%emt 0:01:03]} Kf6 {[%emt 0:00:25]} 42. b4 {[%emt 0:00:55]} Kxf5 {[%emt 0:00:29]} 43. Ke3 {[%emt 0:00:47]} Rh8 {[%emt 0:00:25]} 44. Rg7 0-1

[Event "SVK Amateur-ch 2020"]
[Site "Topolcany"]
[Date "2020.07.11"]
[Round "3.21"]
[White "Cedzo, Adam"]
[Black "Bochnicka, Vladimir"]
[Result "0-1"]
[ECO "B34"]
[WhiteElo "1950"]
[BlackElo "2092"]
[Annotator "ChessBase"]
[PlyCount "54"]
[EventDate "2020.07.10"]
[EventType "swiss"]
[EventCountry "SVK"]
[SourceTitle "playchess.com"]
[Source "ChessBase"]
[SourceQuality "1"]
[TimeControl "3600+30"]

1. e4 {[%emt 0:00:00]} c5 {[%emt 0:00:00]} 2. Nf3 {[%emt 0:00:00]} Nc6 {[%emt 0:00:25]} 3. d4 {[%emt 0:02:00]} cxd4 {[%emt 0:00:09]} 4. Nxd4 {[%emt 0:00:20]} Nf6 {[%emt 0:00:39]} 5. Nc3 {[%emt 0:00:19]} e5 {[%emt 0:00:08]} 6. Ndb5 {[%emt 0:00:37]} d6 {[%emt 0:00:10]} 7. Na3 {[%emt 0:00:43]} a6 {[%emt 0:01:18]} 8. Nc4 {[%emt 0:04:06]} b5 {[%emt 0:02:04]} 9. Ne3 {[%emt 0:01:32]} Be6 {[%emt 0:01:40]} 10. f3 {[%emt 0:04:11]} Be7 {[%emt 0:01:49]} 11. Bd3 {[%emt 0:01:41]} O-O {[%emt 0:00:16]} 12. O-O {[%emt 0:05:42]} Rc8 {[%emt 0:05:14]} 13. a4 {[%emt 0:04:28]} b4 {[%emt 0:00:58]} 14. Ne2 {[%emt 0:02:42]} a5 {[%emt 0:01:05]} 15. Kh1 {[%emt 0:03:19]} d5 {[%emt 0:15:21]} 16. Ng3 {[%emt 0:06:26]} Bc5 {[%emt 0:11:25]} 17. Nef5 {[%emt 0:03:52]} Nd4 {[%emt 0:01:01]} 18. Bg5 {[%emt 0:02:04]} Bxf5 {[%emt 0:03:41]} 19. exf5 {[%emt 0:01:31]} h6 {[%emt 0:00:37]} 20. Bh4 {[%emt 0:00:56]} Be7 {[%emt 0:05:10]} 21. Re1 {[%emt 0:15:39]} Qc7 {[%emt 0:02:01]} 22. Rc1 {[%emt 0:00:55]} Ng4 {[%emt 0:03:09]} 23. fxg4 {[%emt 0:01:44]} Bxh4 {[%emt 0:00:20]} 24. Rf1 {[%emt 0:03:35]} Bg5 {[%emt 0:00:38]} 25. f6 {[%emt 0:01:53]} g6 {[%emt 0:04:12]} 26. Rf2 {[%emt 0:01:58]} Kh7 {[%emt 0:05:53]} 27. Rb1 {[%emt 0:00:40]} Be3 0-1

[Event "SVK Amateur-ch 2020"]
[Site "Topolcany"]
[Date "2020.07.11"]
[Round "3.22"]
[White "Sarkozi, Szabolcs"]
[Black "Redzisz, Michal"]
[Result "0-1"]
[ECO "A02"]
[WhiteElo "2100"]
[BlackElo "1972"]
[Annotator "ChessBase"]
[PlyCount "48"]
[EventDate "2020.07.10"]
[EventType "swiss"]
[EventCountry "SVK"]
[SourceTitle "playchess.com"]
[Source "ChessBase"]
[SourceQuality "1"]
[TimeControl "3600+30"]

1. f4 {[%emt 0:01:11]} e5 {[%emt 0:02:08]} 2. fxe5 {[%emt 0:00:12]} d6 {[%emt 0:00:04]} 3. exd6 {[%emt 0:00:01]} Bxd6 {[%emt 0:00:06]} 4. Nf3 {[%emt 0:00:12]} g5 {[%emt 0:00:05]} 5. g3 {[%emt 0:00:07]} g4 {[%emt 0:00:04]} 6. Nh4 {[%emt 0:00:07]} Ne7 {[%emt 0:00:01]} 7. Bg2 {[%emt 0:01:14]} Ng6 {[%emt 0:01:42]} 8. Nxg6 {[%emt 0:09:13]} hxg6 {[%emt 0:00:26]} 9. e3 {[%emt 0:11:14]} Rxh2 {[%emt 0:19:29]} 10. Rxh2 {[%emt 0:00:05]} Bxg3+ {[%emt 0:00:03]} 11. Ke2 {[%emt 0:00:02]} Bxh2 {[%emt 0:00:06]} 12. Qh1 {[%emt 0:00:16]} g3 {[%emt 0:00:28]} 13. Bxb7 {[%emt 0:05:16]} Bxb7 {[%emt 0:01:48]} 14. Qxb7 {[%emt 0:00:02]} c6 {[%emt 0:01:08]} 15. Qb4 {[%emt 0:02:51]} Qd5 {[%emt 0:04:00]} 16. Nc3 {[%emt 0:02:52]} Qg2+ {[%emt 0:23:47]} 17. Kd3 {[%emt 0:00:02]} Qf1+ {[%emt 0:03:34]} 18. Ne2 {[%emt 0:00:57]} g2 {[%emt 0:00:30]} 19. b3 {[%emt 0:10:05]} g1=Q {[%emt 0:01:50]} 20. Qe4+ {[%emt 0:08:15]} Kd7 {[%emt 0:00:09]} 21. Bb2 {[%emt 0:02:03]} Qxa1 {[%emt 0:01:25]} 22. Qd4+ {[%emt 0:01:05]} Kc7 {[%emt 0:01:41]} 23. Bxa1 {[%emt 0:00:40]} Qf1 {[%emt 0:00:35]} 24. Qh8 {[%emt 0:04:07]} Qf5+ {[%emt 0:01:09]} 0-1

[Event "SVK Amateur-ch 2020"]
[Site "Topolcany"]
[Date "2020.07.11"]
[Round "3.23"]
[White "Kapusta, Petr"]
[Black "Mrkvik, Jan"]
[Result "1-0"]
[ECO "B01"]
[WhiteElo "2115"]
[BlackElo "1942"]
[Annotator "ChessBase"]
[PlyCount "59"]
[EventDate "2020.07.10"]
[EventType "swiss"]
[EventCountry "SVK"]
[SourceTitle "playchess.com"]
[Source "ChessBase"]
[SourceQuality "1"]
[TimeControl "3600+30"]

1. e4 {[%emt 0:00:31]} d5 {[%emt 0:00:00]} 2. exd5 {[%emt 0:00:07]} Qxd5 {[%emt 0:00:00]} 3. Nc3 {[%emt 0:00:05]} Qa5 {[%emt 0:00:19]} 4. d4 {[%emt 0:00:07]} Nf6 {[%emt 0:00:28]} 5. Nf3 {[%emt 0:00:35]} Bf5 {[%emt 0:00:54]} 6. Bc4 {[%emt 0:00:15]} e6 {[%emt 0:01:03]} 7. Bd2 {[%emt 0:00:09]} c6 {[%emt 0:01:13]} 8. Qe2 {[%emt 0:00:09]} h6 {[%emt 0:05:39]} 9. O-O-O {[%emt 0:00:52]} Qc7 {[%emt 0:04:35]} 10. Rhe1 {[%emt 0:01:23]} Be7 {[%emt 0:04:04]} 11. Nh4 {[%emt 0:01:07]} Bh7 {[%emt 0:09:28]} 12. g3 {[%emt 0:02:31]} O-O {[%emt 0:03:00]} 13. f4 {[%emt 0:02:37]} Bd6 {[%emt 0:02:12]} 14. Nf3 {[%emt 0:03:59]} b5 {[%emt 0:03:58]} 15. Bd3 {[%emt 0:01:14]} Bxd3 {[%emt 0:02:17]} 16. Qxd3 {[%emt 0:00:06]} a5 {[%emt 0:00:27]} 17. Ne5 {[%emt 0:00:54]} Nbd7 {[%emt 0:02:10]} 18. g4 {[%emt 0:00:50]} Bxe5 {[%emt 0:07:11]} 19. fxe5 {[%emt 0:00:12]} Nh7 {[%emt 0:01:05]} 20. h4 Rfb8 21. g5 {[%emt 0:01:43]} hxg5 {[%emt 0:02:05]} 22. hxg5 {[%emt 0:00:09]} Qd8 {[%emt 0:05:49]} 23. Ne4 {[%emt 0:01:23]} g6 {[%emt 0:02:46]} 24. Rh1 {[%emt 0:00:45]} Qf8 {[%emt 0:03:04]} 25. Nf6+ {[%emt 0:02:33]} Ndxf6 {[%emt 0:01:17]} 26. gxf6 {[%emt 0:00:13]} Nxf6 {[%emt 0:02:11]} 27. exf6 {[%emt 0:00:10]} Qd8 {[%emt 0:00:02]} 28. Rdf1 {[%emt 0:00:19]} Qd5 {[%emt 0:00:16]} 29. Qh3 {[%emt 0:00:26]} Qh5 {[%emt 0:00:33]} 30. Qxh5 {[%emt 0:00:09]} 1-0

[Event "SVK Amateur-ch 2020"]
[Site "Topolcany"]
[Date "2020.07.11"]
[Round "3.25"]
[White "Belus, Benjamin"]
[Black "Szitas, Gabor"]
[Result "0-1"]
[ECO "A20"]
[WhiteElo "1919"]
[BlackElo "2082"]
[Annotator "ChessBase"]
[PlyCount "62"]
[EventDate "2020.07.10"]
[EventType "swiss"]
[EventCountry "SVK"]
[SourceTitle "playchess.com"]
[Source "ChessBase"]
[SourceQuality "1"]
[TimeControl "3600+30"]

1. c4 {[%emt 0:10:15]} e5 {[%emt 0:01:01]} 2. g3 {[%emt 0:02:13]} Nc6 {[%emt 0:00:14]} 3. Bg2 {[%emt 0:00:02]} Bc5 {[%emt 0:00:16]} 4. Nc3 {[%emt 0:00:20]} a6 {[%emt 0:01:52]} 5. e3 {[%emt 0:00:18]} d6 {[%emt 0:00:43]} 6. Nge2 {[%emt 0:00:48]} Nge7 {[%emt 0:00:49]} 7. d4 {[%emt 0:01:28]} exd4 {[%emt 0:01:10]} 8. exd4 {[%emt 0:00:03]} Ba7 {[%emt 0:00:06]} 9. O-O {[%emt 0:01:09]} Rb8 {[%emt 0:10:20]} 10. a4 {[%emt 0:02:59]} Bg4 {[%emt 0:06:08]} 11. Be3 {[%emt 0:03:22]} O-O {[%emt 0:14:10]} 12. Rb1 {[%emt 0:06:57]} Bf5 {[%emt 0:02:19]} 13. Rc1 {[%emt 0:00:37]} h6 {[%emt 0:04:02]} 14. Qd2 {[%emt 0:02:35]} Na5 {[%emt 0:00:31]} 15. Bxh6 {[%emt 0:05:51]} Nb3 {[%emt 0:04:14]} 16. Qg5 {[%emt 0:00:32]} Bg6 {[%emt 0:00:13]} 17. Rcd1 {[%emt 0:10:18]} gxh6 {[%emt 0:01:33]} 18. Qxh6 {[%emt 0:00:07]} Nf5 {[%emt 0:04:07]} 19. Qf4 {[%emt 0:00:05]} c6 {[%emt 0:07:58]} 20. Ne4 {[%emt 0:01:25]} Nbxd4 {[%emt 0:03:03]} 21. Nxd4 {[%emt 0:00:30]} Nxd4 {[%emt 0:00:37]} 22. Nf6+ {[%emt 0:01:46]} Kg7 {[%emt 0:00:08]} 23. Rxd4 {[%emt 0:08:14]} Bxd4 {[%emt 0:01:24]} 24. Ng4 {[%emt 0:00:37]} Be5 {[%emt 0:00:25]} 25. Qh6+ {[%emt 0:00:16]} Kg8 {[%emt 0:00:03]} 26. f4 {[%emt 0:00:29]} Bg7 {[%emt 0:00:21]} 27. Qh3 {[%emt 0:00:24]} f5 {[%emt 0:01:32]} 28. Nh6+ {[%emt 0:00:34]} Bxh6 {[%emt 0:00:05]} 29. Qxh6 {[%emt 0:00:05]} Qf6 {[%emt 0:00:15]} 30. Bf3 {[%emt 0:04:37]} Rf7 {[%emt 0:00:15]} 31. Qg7+ Kxg7 0-1

[Event "SVK Amateur-ch 2020"]
[Site "Topolcany"]
[Date "2020.07.11"]
[Round "3.27"]
[White "Dzwierzynski, Bartosz"]
[Black "Pokrupa, Marek"]
[Result "1-0"]
[ECO "E97"]
[WhiteElo "1869"]
[BlackElo "2187"]
[Annotator "ChessBase"]
[PlyCount "81"]
[EventDate "2020.07.10"]
[EventType "swiss"]
[EventCountry "SVK"]
[SourceTitle "playchess.com"]
[Source "ChessBase"]
[SourceQuality "1"]
[TimeControl "3600+30"]

1. d4 {[%emt 0:00:00]} Nf6 {[%emt 0:00:00]} 2. c4 {[%emt 0:00:00]} g6 {[%emt 0:00:00]} 3. Nc3 {[%emt 0:00:00]} Bg7 {[%emt 0:00:08]} 4. e4 {[%emt 0:00:00]} d6 {[%emt 0:00:04]} 5. Nf3 {[%emt 0:00:53]} O-O {[%emt 0:00:17]} 6. Be2 {[%emt 0:00:03]} e5 {[%emt 0:00:10]} 7. O-O {[%emt 0:00:37]} Nc6 {[%emt 0:00:06]} 8. d5 {[%emt 0:00:06]} Ne7 {[%emt 0:00:04]} 9. b4 {[%emt 0:01:47]} a5 {[%emt 0:03:51]} 10. Ba3 {[%emt 0:00:15]} Nd7 {[%emt 0:15:07]} 11. bxa5 {[%emt 0:04:04]} Kh8 {[%emt 0:05:26]} 12. Bb4 {[%emt 0:06:08]} Ng8 {[%emt 0:01:25]} 13. Nd2 {[%emt 0:03:42]} f5 {[%emt 0:00:26]} 14. Nb3 {[%emt 0:00:53]} Ngf6 {[%emt 0:02:45]} 15. c5 {[%emt 0:08:07]} dxc5 {[%emt 0:09:47]} 16. Nxc5 {[%emt 0:00:49]} Nxc5 {[%emt 0:00:24]} 17. Bxc5 {[%emt 0:00:06]} Rg8 {[%emt 0:02:14]} 18. f3 {[%emt 0:00:12]} Rxa5 {[%emt 0:00:58]} 19. Bb4 {[%emt 0:01:19]} Ra8 {[%emt 0:00:18]} 20. Qb3 {[%emt 0:03:52]} Bh6 {[%emt 0:03:10]} 21. Bc5 {[%emt 0:07:42]} b6 {[%emt 0:08:31]} 22. Bf2 {[%emt 0:00:13]} fxe4 {[%emt 0:00:24]} 23. fxe4 {[%emt 0:06:20]} Ng4 {[%emt 0:00:04]} 24. Bxg4 {[%emt 0:00:31]} Bxg4 {[%emt 0:00:02]} 25. h3 {[%emt 0:00:55]} Bd7 {[%emt 0:00:53]} 26. d6 {[%emt 0:00:19]} cxd6 {[%emt 0:05:57]} 27. Bxb6 {[%emt 0:00:38]} Qg5 {[%emt 0:00:30]} 28. Nd5 {[%emt 0:02:09]} Ba4 {[%emt 0:02:18]} 29. Qb4 {[%emt 0:02:34]} Bc2 {[%emt 0:00:12]} 30. a4 {[%emt 0:01:10]} Rgc8 {[%emt 0:02:01]} 31. Rf3 {[%emt 0:03:31]} Qh4 {[%emt 0:00:45]} 32. Rf7 {[%emt 0:06:17]} Rf8 {[%emt 0:01:46]} 33. Raf1 {[%emt 0:01:19]} Rxf7 {[%emt 0:04:19]} 34. Rxf7 {[%emt 0:00:31]} Kg8 {[%emt 0:00:35]} 35. Rf2 {[%emt 0:01:42]} Rxa4 {[%emt 0:01:03]} 36. Qc3 {[%emt 0:00:23]} Ra8 {[%emt 0:01:19]} 37. Qxc2 {[%emt 0:00:11]} Ra1+ {[%emt 0:00:09]} 38. Kh2 {[%emt 0:01:34]} Bf4+ {[%emt 0:00:21]} 39. Nxf4 {[%emt 0:00:07]} exf4 {[%emt 0:00:05]} 40. Qc8+ {[%emt 0:01:37]} Kf7 {[%emt 0:00:02]} 41. Qd7+ {[%emt 0:00:30]} 1-0

[Event "SVK Amateur-ch 2020"]
[Site "Topolcany"]
[Date "2020.07.11"]
[Round "3.29"]
[White "Kubrican, Anton"]
[Black "Bodnar, Zoltan"]
[Result "1-0"]
[ECO "A00"]
[WhiteElo "1861"]
[BlackElo "2150"]
[Annotator "ChessBase"]
[PlyCount "47"]
[EventDate "2020.07.10"]
[EventType "swiss"]
[EventCountry "SVK"]
[SourceTitle "playchess.com"]
[Source "ChessBase"]
[SourceQuality "1"]
[TimeControl "3600+30"]

1. g3 {[%emt 0:00:00]} d5 {[%emt 0:00:00]} 2. Bg2 {[%emt 0:00:00]} c5 {[%emt 0:00:08]} 3. d3 {[%emt 0:00:00]} Nc6 {[%emt 0:00:15]} 4. Nc3 {[%emt 0:01:32]} Nf6 {[%emt 0:00:24]} 5. e4 {[%emt 0:00:28]} dxe4 {[%emt 0:00:44]} 6. Nxe4 {[%emt 0:00:14]} Nxe4 {[%emt 0:00:27]} 7. Bxe4 {[%emt 0:00:14]} g6 {[%emt 0:05:05]} 8. Ne2 {[%emt 0:01:59]} Bg4 {[%emt 0:03:05]} 9. h3 {[%emt 0:00:49]} Bc8 {[%emt 0:04:13]} 10. Bg2 {[%emt 0:04:34]} Bg7 {[%emt 0:01:07]} 11. O-O {[%emt 0:00:09]} O-O {[%emt 0:00:10]} 12. Nc3 {[%emt 0:00:58]} e5 {[%emt 0:08:53]} 13. Be3 {[%emt 0:04:13]} Nd4 {[%emt 0:00:51]} 14. Ne4 {[%emt 0:03:20]} Qc7 {[%emt 0:08:18]} 15. c3 {[%emt 0:15:33]} Ne6 {[%emt 0:00:29]} 16. Qb3 {[%emt 0:00:11]} Rd8 {[%emt 0:15:05]} 17. Rad1 {[%emt 0:01:05]} a5 {[%emt 0:00:06]} 18. c4 {[%emt 0:05:34]} f5 {[%emt 0:09:58]} 19. Nc3 {[%emt 0:05:27]} f4 {[%emt 0:00:24]} 20. Nd5 {[%emt 0:00:25]} Qf7 {[%emt 0:00:10]} 21. Nb6 {[%emt 0:04:14]} Ra6 {[%emt 0:05:04]} 22. Nxc8 {[%emt 0:01:13]} Rxc8 {[%emt 0:00:01]} 23. Qxb7 {[%emt 0:01:03]} fxe3 24. Qxc8+ 1-0